fUST/lending_fUST_20251228
["ID","MTS","AMOUNT","RATE_DAILY","PERIOD"]
[399948622,1766928644285,-250.0,0.00019839,2]
[399948623,1766928644294,-250.0,0.00019839,2]
[399948624,1766928644304,-250.0,0.00019839,2]
[399948625,1766928644313,-250.0,0.00019839,2]
[399948626,1766928644323,-257.40548047,0.00019839,2]
[399948627,1766928644332,-185.303,0.00019848,2]
[399948628,1766928644341,-500.0,0.00019849,2]
[399948629,1766928644353,-500.0,0.0001985,2]
[399948630,1766928644367,-500.0,0.0001985,2]
[399948631,1766928644378,-500.0,0.0001985,2]
[399948632,1766928644387,-500.0,0.0001985,2]
[399948633,1766928644397,-500.0,0.0001985,2]
[399948634,1766928644407,-500.0,0.0001985,2]
[399948635,1766928644421,-500.0,0.0001985,2]
[399948636,1766928644429,-7023.35898901,0.00019851,2]
[399948643,1766928646026,-4487.2919622,0.00019851,2]
[399948644,1766928654402,150.0,8.449e-05,2]
[399948645,1766928654861,150.0,8.851e-05,2]
[399948646,1766928655305,208.8,9.254e-05,2]
[399948647,1766928655741,278.4,9.656e-05,2]
[399948648,1766928656208,347.99,0.00010058,2]
[399948649,1766928656707,417.59,0.00010461,2]
[399948650,1766928657153,487.19,0.00010863,2]
[399948651,1766928657572,556.79,0.00011265,2]
[399948652,1766928658085,626.39,0.00011668,2]
[399948653,1766928658492,695.99,0.0001207,2]
[399948654,1766928671069,300.0,0.00030137,120]
[399948655,1766928684329,235.4,0.00013163,2]
[399948656,1766928732110,150.0,6.163e-05,2]
[399948657,1766928732569,150.0,6.456e-05,2]
[399948658,1766928732978,150.0,6.75e-05,2]
[399948659,1766928733872,150.0,7.043e-05,2]
[399948660,1766928734366,150.0,7.337e-05,2]
[399948661,1766928734813,150.0,7.63e-05,2]
[399948662,1766928735322,58.02385313,7.924e-05,2]
[399948663,1766928735347,91.97614687,7.924e-05,2]
[399948664,1766928735755,157.75,8.217e-05,2]
[399948665,1766928736269,177.47,8.511e-05,2]
[399948666,1766928736747,164.12531239,8.804e-05,2]
[399948667,1766928801597,150.0,6.345e-05,2]
[399948668,1766928802097,150.0,6.647e-05,2]
[399948669,1766928802448,150.0,6.949e-05,2]
[399948670,1766928868983,221.95,0.0001,2]
[399948671,1766928871434,221.95,0.000102,2]
[399948672,1766928873837,221.95,0.000104,2]
[399948673,1766928876264,221.95,0.000106,2]
[399948674,1766928878639,221.95,0.000108,2]
[399948675,1766928881024,221.95,0.00011,2]
[399948685,1766929099726,1793.0,0.00030137,120]
[399948686,1766929166546,500.0,0.00030134,120]
[399948687,1766929166773,500.0,0.00030134,120]
[399948688,1766929166998,500.0,0.00030134,120]
[399948689,1766929167230,205.7439334,0.00030134,120]
[399948694,1766929389717,10240.0,0.00030137,120]
[399948695,1766929649913,-5000.0,0.00013399,2]
[399948696,1766929660363,-996.3940947,0.00013534,2]
[399948697,1766929660386,-150.0,0.00013616,2]
[399948698,1766929660407,-395.594543,0.00013699,2]
[399948699,1766929660427,-617.0,0.00013809,2]
[399948700,1766929660449,-665.30205362,0.00013896,3]
[399948709,1766929831543,150.0,6.318e-05,2]
[399948717,1766929831737,-776.01781886,0.00014,2]
[399948718,1766929831753,-439.05841238,0.00014,2]
[399948719,1766929831764,-1168.91284753,0.00014,2]
[399948720,1766929831777,-1038.83719804,0.00014,2]
[399948721,1766929837807,-818.02365166,0.00014,2]
[399948722,1766929837867,-759.15007153,0.00014,2]
[399948723,1766929837877,-510.26573657,0.00014,2]
[399948749,1766929840119,-109.73426343,0.00014,2]
[399948751,1766929840128,-211.67064304,0.00014088,2]
[399948753,1766929840137,-678.59509353,0.00014999,2]
[399948755,1766929840149,-521.40490647,0.00014999,2]
[399948757,1766929840158,-758.19538105,0.00015,2]
[399948759,1766929840167,-241.0,0.00015,2]
[399948761,1766929840176,-177.0,0.00015616,2]
[399948762,1766929840185,-300.0,0.00016411,2]
[399948764,1766929840194,-500.0,0.00016411,2]
[399948766,1766929840203,-500.0,0.00016411,2]
[399948768,1766929840212,-471.6794312,0.00016411,2]
[399948770,1766929840221,-194.0,0.00016499,2]
[399948772,1766929840230,-1041.66666667,0.00017321,2]
[399948774,1766929840239,-211.67064304,0.00017465,2]
[399948776,1766929840249,-204.0,0.00017616,2]
[399948778,1766929840259,-420.0,0.00017935,2]
[399948780,1766929840268,-154.24704626,0.00018159,2]
[399948782,1766929840277,-13708.0005324,0.00018952,2]
[399948784,1766929840287,-216.9251511,0.00019153,2]
[399948786,1766929840297,-622.3372927,0.00019322,2]
[399948788,1766929840307,-883.82414739,0.00019322,2]
[399948790,1766929840316,-883.82414739,0.00019322,2]
[399948792,1766929840325,-883.82414739,0.00019322,2]
[399948794,1766929840335,-883.82414739,0.00019322,2]
[399948796,1766929840344,-883.82414739,0.00019322,2]
[399948797,1766929840353,-883.82414739,0.00019322,2]
[399948798,1766929840362,-883.82414739,0.00019322,2]
[399948799,1766929840372,-883.82414739,0.00019322,2]
[399948800,1766929840381,-883.82414739,0.00019322,2]
[399948801,1766929840390,-883.82414739,0.00019322,2]
[399948802,1766929840400,-883.82414739,0.00019322,2]
[399948803,1766929840409,-363.91818859,0.00019322,2]
[399948804,1766929840418,-883.82414739,0.00019322,2]
[399948805,1766929840427,-883.82414739,0.00019322,2]
[399948806,1766929840436,-883.82414739,0.00019322,2]
[399948807,1766929840446,-883.82414739,0.00019322,2]
[399948808,1766929840455,-883.82414739,0.00019322,2]
[399948809,1766929840464,-351.73503748,0.00019322,2]
[399948863,1766929844590,-207.8283572,0.00018061,2]
[399948864,1766929844601,-532.08910991,0.00019322,2]
[399948865,1766929844612,-883.82414739,0.00019322,2]
[399948866,1766929844622,-1932.41649741,0.00019323,2]
[399948867,1766929844633,-150.0,0.00019424,2]
[399948868,1766929844644,-150.0,0.00019424,2]
[399948869,1766929844655,-150.0,0.00019424,2]
[399948870,1766929844665,-150.0,0.00019424,2]
[399948871,1766929844675,-150.0,0.00019424,2]
[399948872,1766929844684,-150.0,0.00019424,2]
[399948873,1766929844695,-150.0,0.00019424,2]
[399948874,1766929844705,-150.0,0.00019424,2]
[399948875,1766929844714,-150.0,0.00019424,2]
[399948876,1766929844723,-250.0,0.00019424,2]
[399948877,1766929844733,-150.0,0.00019561,2]
[399948878,1766929844742,-150.0,0.00019561,2]
[399948879,1766929844752,-150.0,0.00019561,2]
[399948880,1766929844763,-150.0,0.00019561,2]
[399948881,1766929844773,-150.0,0.00019561,2]
[399948882,1766929844782,-150.0,0.00019561,2]
[399948883,1766929844792,-231.0,0.00019616,2]
[399948884,1766929844803,-461.67526834,0.00019686,2]
[399948885,1766929844813,-500.0,0.00019686,2]
[399948886,1766929844824,-500.0,0.00019686,2]
[399948887,1766929844834,-151.0,0.00019686,2]
[399948888,1766929844843,-500.0,0.00019686,2]
[399948889,1766929844852,-151.0,0.00019686,2]
[399948890,1766929844862,-435.61446799,0.00019686,2]
[399948891,1766929844871,-151.0,0.00019686,2]
[399948892,1766929844881,-151.0,0.00019686,2]
[399948893,1766929844891,-151.0,0.00019686,2]
[399948894,1766929844902,-151.0,0.00019686,2]
[399948895,1766929844912,-151.0,0.00019686,2]
[399948896,1766929844922,-151.0,0.00019686,2]
[399948897,1766929844931,-151.0,0.00019686,2]
[399948898,1766929844941,-151.0,0.00019686,2]
[399948899,1766929844950,-151.0,0.00019686,2]
[399948900,1766929844960,-151.0,0.00019686,2]
[399948901,1766929844972,-151.0,0.00019686,2]
[399948902,1766929844981,-151.0,0.00019686,2]
[399948903,1766929844991,-151.0,0.00019686,2]
[399948904,1766929845002,-151.0,0.00019686,2]
[399948905,1766929845012,-151.0,0.00019686,2]
[399948906,1766929845022,-200.0,0.00019698,2]
[399948907,1766929845032,-200.0,0.00019698,2]
[399948908,1766929845042,-200.0,0.00019698,2]
[399948909,1766929845051,-200.0,0.00019698,2]
[399948910,1766929845060,-200.0,0.00019698,2]
[399948911,1766929845069,-200.0,0.00019698,2]
[399948912,1766929845081,-275.5505459,0.0002,20]
[399948913,1766929845092,-17654.77086738,0.0002,2]
[399948914,1766929845103,-1000.0,0.0002,2]
[399948915,1766929845113,-257.29631862,0.00020066,2]
[399948916,1766929845124,-361.04317058,0.0002009,2]
[399948917,1766929845135,-649.87770705,0.0002009,2]
[399948918,1766929845145,-5000.0,0.00020128,2]
[399948919,1766929845156,-395.594543,0.00020187,2]
[399948920,1766929845166,-213.78406841,0.00020188,2]
[399948921,1766929845176,-174.61919141,0.00020489,2]
[399948922,1766929845186,-200.0,0.00020548,7]
[399948923,1766929845198,-449.26,0.00020588,10]
[399948924,1766929845209,-701.44,0.00020588,10]
[399948925,1766929845220,-584.54,0.00020588,10]
[399948926,1766929845232,-19365.40469137,0.00020598,2]
[399948927,1766929845245,-1154.18280772,0.00020654,2]
[399948928,1766929845256,-487.11,0.00020733,10]
[399948929,1766929845267,-21480.03997465,0.00020743,2]
[399948930,1766929845277,-211.88231368,0.00020843,2]
[399948931,1766929845287,-560.0,0.00020931,10]
[399948932,1766929845298,-1018.0,0.00021,3]
[399948933,1766929845308,-181.08010149,0.00021037,2]
[399948934,1766929845320,-600.0,0.00021327,10]
[399948935,1766929845330,-1932.4164974,0.0002134,2]
[399948936,1766929845340,-3058.6683541,0.00021352,2]
[399948937,1766929845350,-178.09493307,0.00021585,2]
[399948938,1766929845360,-258.0,0.00021616,2]
[399948939,1766929845370,-240.0,0.00021674,2]
[399948940,1766929845380,-240.0,0.00021859,2]
[399948941,1766929845390,-404.96269731,0.00021873,3]
[399948942,1766929845400,-682.4811596,0.00021888,2]
[399948943,1766929845410,-2000.0,0.00021917,3]
[399948944,1766929845420,-150.0,0.00021918,2]
[399948945,1766929845431,-240.0,0.00021926,2]
[399948946,1766929845440,-1934.28996884,0.00021954,2]
[399948947,1766929876999,20480.0,0.00030137,120]
[399948948,1766929932367,169.7,0.0001,2]
[399948949,1766929937689,169.67,0.0001,2]
[399948950,1766929961162,150.0,6.476e-05,2]
[399948951,1766929992265,169.68,0.0001,2]
[399948953,1766930051920,169.7,0.0001,2]
[399948954,1766930109234,169.68,0.0001,2]
[399948955,1766930110644,245.576863,0.00028362,120]
[399948956,1766930169987,169.7,0.0001,2]
[399948957,1766930231510,169.68,0.0001,2]
[399948958,1766930288187,169.7,0.0001,2]
[399948959,1766930353614,169.68,0.0001,2]
[399948960,1766930412036,169.7,0.0001,2]
[399948961,1766930456970,210.12321,0.00030137,120]
[399948962,1766930474675,169.68,0.0001,2]
[399948963,1766930530627,169.7,0.0001,2]
[399948964,1766930595522,169.68,0.0001,2]
[399948965,1766930650031,169.7,0.0001,2]
[399948966,1766930671829,169.69,0.0001,2]
[399948967,1766930711194,169.69,0.0001,2]
[399948968,1766930742472,-3640.99810688,0.00013584,2]
[399948969,1766930742496,-150.0,0.00013791,2]
[399948970,1766930742517,-618.0,0.0001386,2]
[399948971,1766930772987,169.7,0.0001,2]
[399948981,1766930833158,169.69,0.0001,2]
[399948982,1766930903314,153.11,0.0001,2]
[399948984,1766930956006,164.17,0.0001,2]
[399948986,1766931010160,154.69,0.0001,2]
[399949003,1766931031926,-154.69,0.000134,2]
[399949004,1766931031937,-398.22954342,0.00015744,2]
[399949005,1766931031948,-648.0,0.00015744,2]
[399949006,1766931031959,-718.52069608,0.00015843,2]
[399949007,1766931031972,-272.83580882,0.00015843,2]
[399949021,1766931038076,-208.6434951,0.00015843,2]
[399949022,1766931038087,-163.5199368,0.00015843,2]
[399949023,1766931038097,-371.49835501,0.00015844,2]
[399949024,1766931038108,-500.0,0.00015844,2]
[399949025,1766931038120,-869.27119368,0.00015844,2]
[399949026,1766931038131,-181.11978056,0.00015844,2]
[399949027,1766931038141,-869.27119368,0.00015844,2]
[399949028,1766931038154,-869.27119368,0.00015844,2]
[399949029,1766931038165,-869.27119368,0.00015844,2]
[399949030,1766931038176,-892.67464889,0.00015844,2]
[399949031,1766931038187,-892.67464889,0.00015844,2]
[399949032,1766931038197,-892.67464889,0.00015844,2]
[399949033,1766931038207,-884.48101685,0.00015844,2]
[399949034,1766931038216,-884.48101685,0.00015844,2]
[399949035,1766931038226,-887.05405253,0.00015844,2]
[399949036,1766931038238,-887.05405253,0.00015844,2]
[399949037,1766931038248,-887.05405253,0.00015844,2]
[399949038,1766931038259,-887.05405253,0.00015844,2]
[399949039,1766931038269,-887.05405253,0.00015844,2]
[399949040,1766931038284,-887.05405253,0.00015844,2]
[399949041,1766931038296,-887.05405253,0.00015844,2]
[399949042,1766931038307,-887.05405253,0.00015844,2]
[399949043,1766931038318,-887.05405253,0.00015844,2]
[399949044,1766931038329,-887.05405253,0.00015844,2]
[399949045,1766931038339,-887.05405253,0.00015844,2]
[399949046,1766931038349,-970.47937414,0.00015844,2]
[399949047,1766931038359,-970.47937414,0.00015844,2]
[399949048,1766931038370,-970.47937414,0.00015844,2]
[399949049,1766931038381,-970.47937414,0.00015844,2]
[399949050,1766931038392,-970.47937414,0.00015844,2]
[399949051,1766931038402,-970.47937414,0.00015844,2]
[399949052,1766931038413,-336.20158792,0.00015844,2]
[399949053,1766931038423,-5480.56090287,0.00015845,2]
[399949054,1766931038434,-5480.56090287,0.00015845,2]
[399949055,1766931038444,-5480.56090287,0.00015845,2]
[399949056,1766931038455,-5480.56090287,0.00015845,2]
[399949057,1766931038465,-5486.04146377,0.00015845,2]
[399949058,1766931038475,-300.0,0.0001616,2]
[399949059,1766931038486,-300.0,0.0001616,2]
[399949060,1766931038496,-300.0,0.0001616,2]
[399949061,1766931038506,-300.0,0.0001616,2]
[399949062,1766931038516,-300.0,0.0001616,2]
[399949063,1766931038526,-300.0,0.0001616,2]
[399949064,1766931038536,-300.0,0.0001616,2]
[399949065,1766931038546,-300.0,0.0001616,2]
[399949066,1766931038557,-300.0,0.0001616,2]
[399949067,1766931038567,-300.0,0.0001616,2]
[399949068,1766931038577,-300.0,0.0001616,2]
[399949069,1766931038588,-300.0,0.0001616,2]
[399949070,1766931038601,-300.0,0.0001616,2]
[399949071,1766931038612,-300.0,0.0001616,2]
[399949072,1766931038623,-300.0,0.0001616,2]
[399949073,1766931038633,-600.0,0.0001616,2]
[399949074,1766931038644,-1449.31237305,0.000166,2]
[399949075,1766931038655,-547.06958933,0.00016636,2]
[399949076,1766931038666,-154.69,0.000167,2]
[399949077,1766931038679,-547.06958933,0.00016726,2]
[399949078,1766931038690,-150.0,0.00016791,2]
[399949079,1766931038701,-547.06958933,0.00016996,2]
[399949080,1766931038711,-273.31547445,0.00017355,2]
[399949081,1766931038722,-547.06958933,0.00017445,2]
[399949082,1766931038734,-720.0,0.00017776,2]
[399949083,1766931038744,-547.61665891,0.00018075,2]
[399949084,1766931038755,-177.0,0.00018791,2]
[399949085,1766931038765,-1449.31237305,0.00019006,2]
[399949086,1766931038776,-864.0,0.00019553,2]
[399949087,1766931038787,-151.0,0.00019595,2]
[399949088,1766931038797,-151.0,0.00019595,2]
[399949089,1766931038808,-151.0,0.00019595,2]
[399949090,1766931038818,-151.0,0.00019595,2]
[399949091,1766931038829,-151.0,0.00019595,2]
[399949092,1766931038840,-151.0,0.00019595,2]
[399949093,1766931038851,-151.0,0.00019595,2]
[399949094,1766931038861,-151.0,0.00019595,2]
[399949095,1766931038871,-151.0,0.00019595,2]
[399949096,1766931038882,-151.0,0.00019595,2]
[399949097,1766931038893,-151.0,0.00019595,2]
[399949098,1766931038903,-151.0,0.00019595,2]
[399949099,1766931038913,-151.0,0.00019595,2]
[399949100,1766931038924,-151.0,0.00019595,2]
[399949101,1766931038934,-151.0,0.00019595,2]
[399949102,1766931038945,-168.0,0.00019595,2]
[399949103,1766931038955,-1125.01640016,0.000196,2]
[399949104,1766931038965,-356625.65407915,0.00019607,2]
[399949105,1766931038978,-2313.90633025,0.00019607,2]
[399949159,1766931040243,-303.16561086,0.00019607,2]
[399949250,1766931069617,161.01,0.0001,2]
[399949251,1766931126961,155.96,0.0001,2]
[399949252,1766931209887,191.448746,0.00030137,120]
[399949253,1766931250773,159.32,0.0001,2]
[399949254,1766931310987,156.63,0.0001,2]
[399949255,1766931370242,158.43,0.0001,2]
[399949256,1766931472706,332.047,0.00030137,120]
[399949257,1766931487167,157.4,0.0001,2]
[399949258,1766931497627,157.4,0.0001,2]
[399949259,1766931554411,174.337,0.0003013,120]
[399949260,1766931559713,153.34826857,0.00030137,120]
[399949261,1766931566710,157.4,0.0001,2]
[399949262,1766931616089,157.4,0.0001,2]
[399949263,1766931635893,4000.0,0.0001317,2]
[399949264,1766931663192,570.78,0.00030134,120]
[399949265,1766931663419,570.78,0.00030134,120]
[399949266,1766931663666,570.78,0.00030134,120]
[399949267,1766931663907,570.78,0.00030134,120]
[399949268,1766931664140,570.78,0.00030134,120]
[399949269,1766931664370,570.78,0.00030134,120]
[399949270,1766931664601,570.78,0.00030134,120]
[399949271,1766931665223,570.78,0.00030134,120]
[399949272,1766931665460,570.78,0.00030134,120]
[399949273,1766931665693,570.78,0.00030134,120]
[399949274,1766931665938,570.78,0.00030134,120]
[399949275,1766931666169,570.78,0.00030134,120]
[399949276,1766931666400,570.78,0.00030134,120]
[399949277,1766931666630,570.78,0.00030134,120]
[399949278,1766931667031,570.78,0.00030134,120]
[399949279,1766931667267,570.78,0.00030134,120]
[399949280,1766931667504,570.78,0.00030134,120]
[399949281,1766931667841,570.78,0.00030134,120]
[399949282,1766931668067,570.78,0.00030134,120]
[399949283,1766931668323,570.78,0.00030134,120]
[399949284,1766931668562,570.78,0.00030134,120]
[399949285,1766931668793,570.78,0.00030134,120]
[399949286,1766931669062,570.78,0.00030134,120]
[399949287,1766931669304,570.94128416,0.00030134,120]
[399949288,1766931678097,157.4,0.0001,2]
[399949289,1766931732362,157.4,0.0001,2]
[399949310,1766931791893,150.0,0.00030137,120]
[399949311,1766931796346,157.4,0.0001,2]
[399949312,1766931850769,157.4,0.0001,2]
[399949313,1766931868096,266.26,0.00030137,120]
[399949314,1766931924703,157.4,0.0001,2]
[399949316,1766931969044,157.4,0.0001,2]
[399949318,1766932031512,157.4,0.0001,2]
[399949319,1766932089008,157.4,0.0001,2]
[399949337,1766932165643,157.4,0.0001,2]
[399949338,1766932208491,157.4,0.0001,2]
[399949378,1766932237616,-410.04481136,0.00013791,2]
[399949381,1766932237627,-912.08134046,0.00013791,2]
[399949383,1766932237638,-1823.63849134,0.00013791,2]
[399949385,1766932237649,-198.53775671,0.00013791,2]
[399949387,1766932237659,-150.0,0.0001393,2]
[399949389,1766932237668,-157.4,0.00014,2]
[399949391,1766932237678,-249.01,0.000144,2]
[399949393,1766932237687,-506.26902307,0.00015,2]
[399949395,1766932237697,-888.0,0.00015841,2]
[399949397,1766932237706,-467.89447605,0.00015843,2]
[399949399,1766932237715,-177.0,0.0001593,2]
[399949401,1766932237724,-176.66332753,0.0001656,2]
[399949403,1766932237734,-156.78419729,0.00016568,2]
[399949405,1766932237743,-500.0,0.00016597,2]
[399949407,1766932237752,-500.0,0.00016597,2]
[399949409,1766932237761,-500.0,0.00016597,2]
[399949411,1766932237769,-512.01387983,0.00016597,2]
[399949413,1766932237778,-500.0,0.00016598,2]
[399949415,1766932237787,-832.5,0.00016598,2]
[399949417,1766932237796,-2693.52,0.00016598,2]
[399949419,1766932237805,-500.0,0.00016929,2]
[399949422,1766932237815,-300.0,0.0001693,2]
[399949424,1766932237824,-300.0,0.0001693,2]
[399949425,1766932237833,-300.0,0.0001693,2]
[399949428,1766932237843,-300.0,0.0001693,2]
[399949430,1766932237852,-300.0,0.0001693,2]
[399949431,1766932237861,-300.0,0.0001693,2]
[399949433,1766932237870,-300.0,0.0001693,2]
[399949435,1766932237879,-300.0,0.0001693,2]
[399949437,1766932237888,-300.0,0.0001693,2]
[399949439,1766932237897,-300.0,0.0001693,2]
[399949442,1766932237906,-300.0,0.0001693,2]
[399949444,1766932237915,-300.0,0.0001693,2]
[399949446,1766932237925,-300.0,0.0001693,2]
[399949448,1766932237934,-300.0,0.0001693,2]
[399949450,1766932237944,-300.0,0.0001693,2]
[399949452,1766932237953,-600.0,0.00017268,2]
[399949454,1766932237963,-1041.66666667,0.00017336,2]
[399949456,1766932237971,-475.0,0.00017445,2]
[399949458,1766932237981,-2295.64826607,0.00017586,2]
[399949459,1766932237990,-3319.54,0.00017588,2]
[399949462,1766932237999,-367.11822496,0.00017595,2]
[399949463,1766932238008,-646.14193742,0.00017595,2]
[399949466,1766932238018,-1033.49801814,0.00017595,2]
[399949468,1766932238028,-1033.49801814,0.00017595,2]
[399949470,1766932238046,-1033.49801814,0.00017595,2]
[399949473,1766932238058,-475.0,0.00017596,2]
[399949475,1766932238067,-475.0,0.00017596,2]
[399949477,1766932238077,-475.0,0.00017596,2]
[399949479,1766932238087,-475.0,0.00017596,2]
[399949481,1766932238098,-475.0,0.00017596,2]
[399949483,1766932238108,-475.0,0.00017596,2]
[399949485,1766932238117,-475.0,0.00017596,2]
[399949487,1766932238127,-475.0,0.00017596,2]
[399949489,1766932238140,-254.40352087,0.0001765,2]
[399949491,1766932238150,-432.2485867,0.0001769,2]
[399949493,1766932238160,-204.0,0.0001793,2]
[399949495,1766932238169,-318.0,0.00018045,2]
[399949497,1766932238179,-229.6189986,0.00018087,2]
[399949499,1766932238188,-157.4,0.000181,2]
[399949501,1766932238198,-500.0,0.00018575,2]
[399949503,1766932238207,-240.0,0.00018901,2]
[399949505,1766932238218,-240.0,0.00018988,2]
[399949507,1766932238228,-500.0,0.00018993,2]
[399949509,1766932238237,-3319.54,0.00018993,2]
[399949511,1766932238247,-720.0,0.00018994,2]
[399949513,1766932238258,-4936.0,0.00019079,2]
[399949515,1766932238268,-500.0,0.0001913,2]
[399949517,1766932238277,-4936.0,0.00019131,2]
[399949519,1766932238288,-376.1809797,0.00019141,2]
[399949521,1766932238297,-376.1809797,0.00019141,2]
[399949523,1766932238306,-376.1809797,0.00019141,2]
[399949526,1766932238315,-376.1809797,0.00019141,2]
[399949529,1766932238324,-376.1809797,0.00019141,2]
[399949531,1766932238334,-376.1809797,0.00019141,2]
[399949533,1766932238344,-240.0,0.00019161,2]
[399949535,1766932238352,-500.0,0.00019178,2]
[399949537,1766932238362,-500.0,0.00019178,2]
[399949539,1766932238371,-5707.0,0.00019297,2]
[399949541,1766932238380,-500.0,0.00019312,2]
[399949543,1766932238389,-3319.54,0.00019312,2]
[399949545,1766932238399,-4936.0,0.00019313,2]
[399949547,1766932238408,-500.0,0.00019344,2]
[399949549,1766932238423,-4936.0,0.00019345,2]
[399949551,1766932238433,-2477.5243733,0.00019377,2]
[399949553,1766932238444,-500.0,0.00019404,2]
[399949555,1766932238454,-500.0,0.00019404,2]
[399949557,1766932238464,-500.0,0.00019404,2]
[399949559,1766932238474,-832.5,0.00019404,2]
[399949561,1766932238485,-832.5,0.00019404,2]
[399949563,1766932238495,-2693.52,0.00019404,2]
[399949565,1766932238505,-2693.52,0.00019404,2]
[399949567,1766932238514,-5707.0,0.00019447,2]
[399949569,1766932238524,-500.0,0.00019467,2]
[399949571,1766932238533,-3361.1668366,0.00019468,2]
[399949573,1766932238543,-844.3237274,0.00019468,2]
[399949575,1766932238556,-500.0,0.00019473,2]
[399949577,1766932238565,-3319.54,0.00019473,2]
[399949579,1766932238575,-504.67406641,0.00019473,2]
[399949581,1766932238586,-329.729636,0.00019474,2]
[399949583,1766932238598,-329.729636,0.00019474,2]
[399949585,1766932238607,-329.729636,0.00019474,2]
[399949587,1766932238617,-329.729636,0.00019474,2]
[399949589,1766932238627,-19729.87350597,0.00019474,2]
[399949591,1766932238636,-500.0,0.0001948,2]
[399949593,1766932238646,-3319.54,0.0001948,2]
[399949595,1766932238655,-151.0,0.00019481,2]
[399949597,1766932238665,-151.0,0.00019481,2]
[399949599,1766932238674,-151.0,0.00019481,2]
[399949601,1766932238683,-279.301448,0.00019481,2]
[399949603,1766932238693,-4936.0,0.00019481,2]
[399949605,1766932238702,-500.0,0.00019505,2]
[399949607,1766932238711,-506.8732865,0.00019505,2]
[399949609,1766932238721,-500.0,0.00019505,2]
[399949611,1766932238732,-500.0,0.00019505,2]
[399949613,1766932238742,-500.0,0.00019505,2]
[399949616,1766932238763,-500.0,0.00019505,2]
[399949618,1766932238776,-500.0,0.00019505,2]
[399949621,1766932238789,-500.0,0.00019505,2]
[399949623,1766932238801,-500.0,0.00019505,2]
[399949625,1766932238813,-500.0,0.00019505,2]
[399949627,1766932238824,-588.86,0.00019505,2]
[399949630,1766932238837,-151.0,0.00019505,2]
[399949632,1766932238850,-832.5,0.00019505,2]
[399949634,1766932238862,-500.0,0.00019505,2]
[399949635,1766932238872,-500.0,0.00019505,2]
[399949636,1766932238887,-3319.54,0.00019505,2]
[399949637,1766932238898,-3319.54,0.00019505,2]
[399949639,1766932238909,-3319.54,0.00019505,2]
[399949641,1766932238921,-3319.54,0.00019505,2]
[399949643,1766932238933,-3319.54,0.00019505,2]
[399949645,1766932238944,-2693.52,0.00019505,2]
[399949647,1766932238955,-500.0,0.00019506,2]
[399949648,1766932238967,-500.0,0.00019506,2]
[399949649,1766932238979,-500.0,0.00019506,2]
[399949650,1766932238991,-500.0,0.00019506,2]
[399949652,1766932239003,-503.64703029,0.00019506,2]
[399949654,1766932239016,-500.0,0.00019506,2]
[399949656,1766932239027,-500.0,0.00019506,2]
[399949659,1766932239038,-500.0,0.00019506,2]
[399949661,1766932239050,-500.0,0.00019506,2]